[Event "Masters Tournament (MTO)"]
[Site "Biel, Switzerland"]
[Date "2026.07.17"]
[Round "5.20"]
[White "Rappazzo, Johannes"]
[Black "Malli, Suvirr"]
[Result "0-1"]
[TimeControl "100+30+30sec/move"]
[WhiteTitle "-"]
[BlackTitle "-"]
[WhiteFideId "1340069"]
[BlackFideId "1341855"]
[WhiteElo "2268"]
[BlackElo "2120"]

1. e4 {[%clk 01:40:59]} c5 {[%clk 01:40:54]} {[%emt 00:00:07]} 2. Nc3 {[%clk
01:41:23]} {[%emt 00:00:06]} d6 {[%clk 01:41:15]} {[%emt 00:00:09]} 3. f4
{[%clk 01:41:49]} {[%emt 00:00:04]} g6 {[%clk 01:40:55]} {[%emt 00:00:51]} 4.
Nf3 {[%clk 01:42:15]} {[%emt 00:00:01]} Bg7 {[%clk 01:40:47]} {[%emt 00:00:38]}
5. Bc4 {[%clk 01:42:37]} {[%emt 00:00:08]} Nc6 {[%clk 01:40:57]} {[%emt
00:00:21]} 6. d3 {[%clk 01:43:00]} {[%emt 00:00:07]} e6 {[%clk 01:40:44]}
{[%emt 00:00:43]} 7. Bb3 {[%clk 01:43:25]} {[%emt 00:00:07]} Nge7 {[%clk
01:38:41]} {[%emt 00:02:31]} 8. Be3 {[%clk 01:42:25]} {[%emt 00:01:30]} Nd4
{[%clk 01:18:04]} {[%emt 00:21:08]} 9. Bxd4 {[%clk 01:29:14]} {[%emt 00:13:40]}
cxd4 {[%clk 01:16:03]} {[%emt 00:02:31]} 10. Ne2 {[%clk 01:29:37]} {[%emt
00:00:07]} Qa5+ {[%clk 01:13:45]} {[%emt 00:02:48]} 11. Qd2 {[%clk 01:28:31]}
{[%emt 00:01:36]} Qc5 {[%clk 01:00:35]} {[%emt 00:13:39]} 12. c3 {[%clk
01:03:31]} {[%emt 00:25:30]} dxc3 {[%clk 00:54:30]} {[%emt 00:06:35]} 13. bxc3
{[%clk 00:56:34]} {[%emt 00:07:28]} O-O {[%clk 00:52:09]} {[%emt 00:02:50]} 14.
d4 {[%clk 00:56:17]} {[%emt 00:00:48]} Qc6 {[%clk 00:51:51]} {[%emt 00:00:48]}
15. Ng3 {[%clk 00:52:35]} {[%emt 00:04:13]} Qa6 {[%clk 00:39:43]} {[%emt
00:12:38]} 16. Ne2 {[%clk 00:37:23]} {[%emt 00:15:42]} Qc6 {[%clk 00:38:48]}
{[%emt 00:01:25]} 17. Bc2 {[%clk 00:32:07]} {[%emt 00:05:46]} b6 {[%clk
00:37:02]} {[%emt 00:02:16]} 18. Bd3 {[%clk 00:31:09]} {[%emt 00:01:27]} b5
{[%clk 00:32:10]} {[%emt 00:05:22]} 19. Rb1 {[%clk 00:26:37]} {[%emt 00:05:03]}
a6 {[%clk 00:31:36]} {[%emt 00:01:04]} 20. O-O {[%clk 00:25:27]} {[%emt
00:01:38]} Qc7 {[%clk 00:29:21]} {[%emt 00:02:45]} 21. Rbc1 {[%clk 00:20:09]}
{[%emt 00:05:49]} Bd7 {[%clk 00:27:51]} {[%emt 00:01:59]} 22. Ng3 {[%clk
00:18:19]} {[%emt 00:02:20]} Rac8 {[%clk 00:23:39]} {[%emt 00:04:43]} 23. e5
{[%clk 00:13:15]} {[%emt 00:05:34]} Nf5 {[%clk 00:18:25]} {[%emt 00:05:43]} 24.
Ne4 {[%clk 00:09:49]} {[%emt 00:03:56]} Bc6 {[%clk 00:16:49]} {[%emt 00:02:07]}
25. Nf6+ {[%clk 00:07:32]} {[%emt 00:02:48]} Bxf6 {[%clk 00:13:13]} {[%emt
00:04:05]} 26. exf6 {[%clk 00:05:12]} {[%emt 00:02:50]} h5 {[%clk 00:12:00]}
{[%emt 00:01:42]} 27. Qe1 {[%clk 00:01:31]} {[%emt 00:04:12]} Qd8 {[%clk
00:10:06]} {[%emt 00:02:23]} 28. Bxf5 {[%clk 00:01:09]} {[%emt 00:00:52]} exf5
{[%clk 00:10:30]} {[%emt 00:00:06]} 29. Qh4 {[%clk 00:01:23]} {[%emt 00:00:17]}
Re8 {[%clk 00:09:43]} {[%emt 00:01:17]} 30. Rce1 {[%clk 00:01:23]} {[%emt
00:00:30]} Be4 {[%clk 00:08:36]} {[%emt 00:01:36]} 31. Nd2 {[%clk 00:00:39]}
{[%emt 00:01:15]} d5 {[%clk 00:04:32]} {[%emt 00:04:34]} 32. Nb3 {[%clk
00:00:48]} {[%emt 00:00:21]} Rxc3 {[%clk 00:01:43]} {[%emt 00:03:18]} 33. Nc5
{[%clk 00:01:12]} {[%emt 00:00:06]} Rc2 {[%clk 00:01:47]} {[%emt 00:00:25]} 34.
Rf2 {[%clk 00:01:10]} {[%emt 00:00:32]} Rxf2 {[%clk 00:02:08]} {[%emt
00:00:10]} 35. Kxf2 {[%clk 00:01:28]} {[%emt 00:00:12]} Qa5 {[%clk 00:02:12]}
{[%emt 00:00:25]} 36. Re2 {[%clk 00:01:27]} {[%emt 00:00:32]} Qc3 {[%clk
00:02:07]} {[%emt 00:00:35]} 37. Nb3 {[%clk 00:01:51]} {[%emt 00:00:07]} Re6
{[%clk 00:01:05]} {[%emt 00:01:31]} 38. Re3 {[%clk 00:01:48]} {[%emt 00:00:33]}
Qc2+ {[%clk 00:00:47]} {[%emt 00:00:47]} 39. Re2 {[%clk 00:02:14]} {[%emt
00:00:05]} Qc4 {[%clk 00:00:41]} {[%emt 00:00:36]} 40. Qg5 {[%clk 00:01:44]}
{[%emt 00:01:00]} a5 {[%clk 00:00:35]} {[%emt 00:00:37]} 41. Qh6 {[%clk
00:27:44]} {[%emt 00:04:29]} Rxf6 {[%clk 00:30:55]} {[%emt 00:00:10]} 42. Qg5
{[%clk 00:28:12]} {[%emt 00:00:02]} Kg7 {[%clk 00:30:47]} {[%emt 00:00:38]} 43.
Rd2 {[%clk 00:28:36]} {[%emt 00:00:06]} Qb4 {[%clk 00:28:07]} {[%emt 00:03:10]}
44. Ke1 {[%clk 00:28:40]} {[%emt 00:00:25]} Qc3 {[%clk 00:26:21]} {[%emt
00:02:15]} 45. Nc5 {[%clk 00:28:46]} {[%emt 00:00:25]} Qe3+ {[%clk 00:26:32]}
{[%emt 00:00:18]} 46. Kd1 {[%clk 00:28:56]} {[%emt 00:00:21]} Qg1+ {[%clk
00:26:40]} {[%emt 00:00:21]} 47. Ke2 {[%clk 00:29:21]} {[%emt 00:00:05]} Bxg2
{[%clk 00:26:07]} {[%emt 00:01:03]} 0-1

[Event "Masters Tournament (MTO)"]
[Site "Biel, Switzerland"]
[Date "2026.07.17"]
[Round "5.21"]
[White "Kukushkin, Ivan"]
[Black "Kwiatkowski, Jakub"]
[Result "0-1"]
[TimeControl "100+30+30sec/move"]
[WhiteTitle "-"]
[BlackTitle "-"]
[WhiteFideId "11634103"]
[BlackFideId "1348736"]
[WhiteElo "2257"]
[BlackElo "2107"]

1. Nf3 {[%clk 01:32:07]} {[%emt 00:08:53]} Nf6 {[%clk 01:40:50]} {[%emt
00:00:10]} 2. c4 {[%clk 01:32:32]} {[%emt 00:00:05]} e6 {[%clk 01:41:11]}
{[%emt 00:00:08]} 3. b3 {[%clk 01:33:00]} {[%emt 00:00:03]} d5 {[%clk
01:41:29]} {[%emt 00:00:12]} 4. Bb2 {[%clk 01:33:21]} {[%emt 00:00:09]} c5
{[%clk 01:40:24]} {[%emt 00:01:36]} 5. cxd5 {[%clk 01:31:53]} {[%emt 00:01:58]}
exd5 {[%clk 01:40:42]} {[%emt 00:00:11]} 6. d4 {[%clk 01:32:19]} {[%emt
00:00:04]} Nc6 {[%clk 01:41:02]} {[%emt 00:00:10]} 7. g3 {[%clk 01:26:32]}
{[%emt 00:06:17]} cxd4 {[%clk 01:38:40]} {[%emt 00:02:53]} 8. Nbd2 {[%clk
01:11:31]} {[%emt 00:15:30]} Bc5 {[%clk 01:34:27]} {[%emt 00:04:42]} 9. Rc1
{[%clk 01:08:23]} {[%emt 00:03:38]} Qe7 {[%clk 01:20:31]} {[%emt 00:14:25]} 10.
Bg2 {[%clk 00:57:11]} {[%emt 00:11:44]} O-O {[%clk 01:18:43]} {[%emt 00:02:16]}
11. O-O {[%clk 00:55:38]} {[%emt 00:02:04]} Bf5 {[%clk 01:05:06]} {[%emt
00:14:07]} 12. Nh4 {[%clk 00:55:09]} {[%emt 00:01:00]} Be4 {[%clk 01:02:07]}
{[%emt 00:03:28]} 13. Ndf3 {[%clk 00:44:48]} {[%emt 00:10:52]} Rfe8 {[%clk
00:51:43]} {[%emt 00:10:54]} 14. Re1 {[%clk 00:37:32]} {[%emt 00:07:46]} Bb4
{[%clk 00:51:26]} {[%emt 00:00:46]} 15. Rf1 {[%clk 00:37:14]} {[%emt 00:00:47]}
Bc5 {[%clk 00:47:50]} {[%emt 00:04:07]} 16. Qd2 {[%clk 00:27:02]} {[%emt
00:10:43]} Bb4 {[%clk 00:39:42]} {[%emt 00:08:38]} 17. Qf4 {[%clk 00:24:22]}
{[%emt 00:03:10]} Nh5 {[%clk 00:35:15]} {[%emt 00:04:57]} 18. Qg4 {[%clk
00:24:19]} {[%emt 00:00:33]} Nf6 {[%clk 00:35:34]} {[%emt 00:00:10]} 19. Qf4
{[%clk 00:24:35]} {[%emt 00:00:15]} Ba3 {[%clk 00:28:04]} {[%emt 00:08:00]} 20.
Bxa3 {[%clk 00:22:17]} {[%emt 00:02:48]} Qxa3 {[%clk 00:27:51]} {[%emt
00:00:43]} 21. Nd2 {[%clk 00:19:24]} {[%emt 00:03:23]} Bxg2 {[%clk 00:22:43]}
{[%emt 00:05:38]} 22. Kxg2 {[%clk 00:19:16]} {[%emt 00:00:38]} Rxe2 {[%clk
00:20:03]} {[%emt 00:03:10]} 23. Nf5 {[%clk 00:18:17]} {[%emt 00:01:29]} Ne7
{[%clk 00:18:38]} {[%emt 00:01:55]} 24. Rc2 {[%clk 00:12:47]} {[%emt 00:06:00]}
Nxf5 {[%clk 00:16:38]} {[%emt 00:02:30]} 25. Qxf5 {[%clk 00:13:09]} {[%emt
00:00:08]} Rae8 {[%clk 00:16:49]} {[%emt 00:00:19]} 26. Qd3 {[%clk 00:11:56]}
{[%emt 00:01:43]} Qb4 {[%clk 00:14:50]} {[%emt 00:02:28]} 27. Kg1 {[%clk
00:10:16]} {[%emt 00:02:11]} g6 {[%clk 00:14:14]} {[%emt 00:01:06]} 28. a3
{[%clk 00:08:32]} {[%emt 00:02:14]} Qb6 {[%clk 00:10:59]} {[%emt 00:03:44]} 29.
Rfc1 {[%clk 00:07:58]} {[%emt 00:01:05]} Kg7 {[%clk 00:10:20]} {[%emt
00:01:09]} 30. Nf3 {[%clk 00:07:49]} {[%emt 00:00:39]} Rxc2 {[%clk 00:09:48]}
{[%emt 00:01:02]} 31. Rxc2 {[%clk 00:07:50]} {[%emt 00:00:29]} Re4 {[%clk
00:08:43]} {[%emt 00:01:34]} 32. Kg2 {[%clk 00:07:41]} {[%emt 00:00:39]} Nd7
{[%clk 00:07:32]} {[%emt 00:01:41]} 33. Qd2 {[%clk 00:06:09]} {[%emt 00:02:02]}
Qxb3 {[%clk 00:05:56]} {[%emt 00:02:07]} 34. Rc7 {[%clk 00:05:58]} {[%emt
00:00:41]} Qa4 {[%clk 00:02:31]} {[%emt 00:03:55]} 35. Ng5 {[%clk 00:05:45]}
{[%emt 00:00:43]} Re7 {[%clk 00:01:52]} {[%emt 00:01:08]} 36. Qf4 {[%clk
00:06:00]} {[%emt 00:00:15]} Qxa3 {[%clk 00:01:38]} {[%emt 00:00:45]} 37. Qxd4+
{[%clk 00:04:28]} {[%emt 00:02:02]} Nf6 {[%clk 00:01:58]} {[%emt 00:00:10]} 38.
Rc8 {[%clk 00:04:10]} {[%emt 00:00:48]} Qd6 {[%clk 00:01:38]} {[%emt 00:00:50]}
39. h4 {[%clk 00:02:45]} {[%emt 00:01:55]} h6 {[%clk 00:01:44]} {[%emt
00:00:23]} 40. Ra8 {[%clk 00:02:27]} {[%emt 00:00:49]} b6 {[%clk 00:01:43]}
{[%emt 00:00:31]} 41. Nf3 {[%clk 00:01:40]} {[%emt 00:01:16]} Qc6 {[%clk
00:25:57]} {[%emt 00:06:15]} 42. Rd8 {[%clk 00:30:52]} {[%emt 00:01:20]} Qc4
{[%clk 00:24:05]} {[%emt 00:02:21]} 43. Qa1 {[%clk 00:30:47]} {[%emt 00:00:35]}
Re2 {[%clk 00:20:26]} {[%emt 00:04:10]} 44. h5 {[%clk 00:30:00]} {[%emt
00:01:17]} Qa2 {[%clk 00:17:56]} {[%emt 00:03:00]} 45. Qd4 {[%clk 00:29:24]}
{[%emt 00:01:06]} Qb2 {[%clk 00:17:36]} {[%emt 00:00:50]} 46. Qxb2 {[%clk
00:24:43]} {[%emt 00:05:11]} Rxb2 {[%clk 00:17:58]} {[%emt 00:00:07]} 47. hxg6
{[%clk 00:25:08]} {[%emt 00:00:05]} fxg6 {[%clk 00:18:13]} {[%emt 00:00:15]} 48.
Ne5 {[%clk 00:24:52]} {[%emt 00:00:47]} Ne4 {[%clk 00:16:21]} {[%emt 00:02:21]}
49. Rd7+ {[%clk 00:24:50]} {[%emt 00:00:33]} Kf6 {[%clk 00:15:55]} {[%emt
00:00:56]} 50. Ng4+ {[%clk 00:25:07]} {[%emt 00:00:12]} Kg5 {[%clk 00:16:06]}
{[%emt 00:00:19]} 51. Ne3 {[%clk 00:25:02]} {[%emt 00:00:36]} Rxf2+ {[%clk
00:16:06]} {[%emt 00:00:29]} 52. Kh3 {[%clk 00:25:27]} {[%emt 00:00:05]} Nf6
{[%clk 00:15:32]} {[%emt 00:01:05]} 53. Rxa7 {[%clk 00:25:47]} {[%emt
00:00:10]} d4 {[%clk 00:15:24]} {[%emt 00:00:38]} 54. Ng2 {[%clk 00:25:13]}
{[%emt 00:01:04]} d3 {[%clk 00:14:00]} {[%emt 00:01:53]} 55. Ra3 {[%clk
00:25:15]} {[%emt 00:00:29]} d2 {[%clk 00:13:04]} {[%emt 00:01:26]} 56. Rd3
{[%clk 00:25:26]} {[%emt 00:00:19]} Rf1 {[%clk 00:11:46]} {[%emt 00:01:47]} 57.
Ne3 {[%clk 00:25:40]} {[%emt 00:00:16]} Rf3 {[%clk 00:12:06]} {[%emt 00:00:10]}
58. Rxd2 {[%clk 00:26:04]} {[%emt 00:00:07]} Rxe3 {[%clk 00:12:26]} {[%emt
00:00:09]} 59. Rb2 {[%clk 00:26:32]} {[%emt 00:00:02]} Nd5 {[%clk 00:12:42]}
{[%emt 00:00:14]} 60. Rb5 {[%clk 00:26:40]} {[%emt 00:00:22]} Re5 {[%clk
00:13:04]} {[%emt 00:00:08]} 61. Rb3 {[%clk 00:27:05]} {[%emt 00:00:06]} Kf6
{[%clk 00:13:25]} {[%emt 00:00:08]} 62. Kh4 {[%clk 00:27:27]} {[%emt 00:00:07]}
Ke6 {[%clk 00:13:33]} {[%emt 00:00:22]} 63. g4 {[%clk 00:27:00]} {[%emt
00:00:57]} Re3 {[%clk 00:13:34]} {[%emt 00:00:29]} 64. Rb1 {[%clk 00:27:22]}
{[%emt 00:00:09]} g5+ {[%clk 00:13:25]} {[%emt 00:00:39]} 65. Kh5 {[%clk
00:27:46]} {[%emt 00:00:05]} Kf6 {[%clk 00:13:24]} {[%emt 00:00:32]} 66. Rh1
{[%clk 00:27:34]} {[%emt 00:00:43]} Nf4+ {[%clk 00:13:44]} {[%emt 00:00:09]} 67.
Kxh6 {[%clk 00:27:58]} {[%emt 00:00:06]} Rh3 {[%clk 00:14:08]} {[%emt
00:00:07]} 0-1

[Event "Masters Tournament (MTO)"]
[Site "Biel, Switzerland"]
[Date "2026.07.17"]
[Round "5.22"]
[White "St Pierre, Joseph"]
[Black "Joly, Julien"]
[Result "0-1"]
[TimeControl "100+30+30sec/move"]
[WhiteTitle "-"]
[BlackTitle "-"]
[WhiteFideId "30953472"]
[BlackFideId "26082284"]
[WhiteElo "2067"]
[BlackElo "2257"]

1. d4 {[%clk 01:40:51]} {[%emt 00:00:08]} d6 {[%clk 01:40:43]} {[%emt
00:00:18]} 2. e4 {[%clk 01:40:53]} {[%emt 00:00:29]} Nf6 {[%clk 01:40:41]}
{[%emt 00:00:30]} 3. Nc3 {[%clk 01:41:12]} {[%emt 00:00:11]} g6 {[%clk
01:41:01]} {[%emt 00:00:10]} 4. f4 {[%clk 01:41:34]} {[%emt 00:00:08]} Bg7
{[%clk 01:40:59]} {[%emt 00:00:33]} 5. Nf3 {[%clk 01:41:57]} {[%emt 00:00:07]}
O-O {[%clk 01:41:20]} {[%emt 00:00:08]} 6. Be3 {[%clk 01:41:40]} {[%emt
00:00:48]} b6 {[%clk 01:35:45]} {[%emt 00:06:04]} 7. Bc4 {[%clk 01:30:25]}
{[%emt 00:11:46]} e6 {[%clk 01:25:02]} {[%emt 00:11:13]} 8. Qd2 {[%clk
01:19:38]} {[%emt 00:11:17]} Bb7 {[%clk 01:14:58]} {[%emt 00:10:34]} 9. Bd3
{[%clk 01:00:31]} {[%emt 00:19:37]} Na6 {[%clk 01:08:32]} {[%emt 00:06:56]} 10.
h3 {[%clk 00:53:19]} {[%emt 00:07:42]} c5 {[%clk 01:00:59]} {[%emt 00:08:03]}
11. O-O {[%clk 00:52:15]} {[%emt 00:01:34]} Rc8 {[%clk 00:55:30]} {[%emt
00:05:59]} 12. e5 {[%clk 00:41:04]} {[%emt 00:11:41]} cxd4 {[%clk 00:52:43]}
{[%emt 00:03:18]} 13. Bxd4 {[%clk 00:40:52]} {[%emt 00:00:42]} dxe5 {[%clk
00:48:05]} {[%emt 00:05:08]} 14. Bxe5 {[%clk 00:39:36]} {[%emt 00:01:46]} Nc7
{[%clk 00:24:41]} {[%emt 00:23:53]} 15. a4 {[%clk 00:29:16]} {[%emt 00:10:50]}
a6 {[%clk 00:24:42]} {[%emt 00:00:30]} 16. Qf2 {[%clk 00:27:33]} {[%emt
00:02:13]} Ncd5 {[%clk 00:24:29]} {[%emt 00:00:43]} 17. Nxd5 Nxd5 18. Be4
{[%clk 00:25:50]} Qe7 {[%clk 00:17:57]} {[%emt 00:06:37]} 19. c3 {[%clk
00:21:15]} {[%emt 00:05:04]} Rc5 {[%clk 00:16:18]} {[%emt 00:02:09]} 20. Rfe1
{[%clk 00:18:31]} {[%emt 00:03:14]} Bxe5 {[%clk 00:13:42]} {[%emt 00:03:07]} 21.
Nxe5 {[%clk 00:16:09]} {[%emt 00:02:52]} Nf6 {[%clk 00:11:30]} {[%emt
00:02:42]} 22. Bxb7 {[%clk 00:14:42]} {[%emt 00:01:57]} Qxb7 {[%clk 00:11:59]}
{[%emt 00:00:01]} 23. Rad1 {[%clk 00:15:04]} {[%emt 00:00:08]} Rd5 {[%clk
00:11:22]} {[%emt 00:01:07]} 24. c4 {[%clk 00:15:14]} {[%emt 00:00:20]} Rxd1
{[%clk 00:07:34]} {[%emt 00:04:18]} 25. Rxd1 {[%clk 00:15:38]} {[%emt
00:00:05]} Qc7 {[%clk 00:06:45]} {[%emt 00:01:19]} 26. Qd4 {[%clk 00:14:55]}
{[%emt 00:01:13]} Rc8 {[%clk 00:05:26]} {[%emt 00:01:50]} 27. b3 {[%clk
00:13:40]} {[%emt 00:01:45]} Nh5 {[%clk 00:02:08]} {[%emt 00:03:48]} 28. g4
{[%clk 00:09:16]} {[%emt 00:04:54]} Nf6 {[%clk 00:02:33]} {[%emt 00:00:05]} 29.
g5 {[%clk 00:04:30]} {[%emt 00:05:17]} Nh5 {[%clk 00:02:47]} {[%emt 00:00:16]}
30. Ng4 {[%clk 00:04:50]} {[%emt 00:00:09]} Qxf4 {[%clk 00:01:39]} {[%emt
00:01:39]} 31. Nf6+ {[%clk 00:04:43]} {[%emt 00:00:37]} Kf8 {[%clk 00:01:12]}
{[%emt 00:00:58]} 32. Nxh7+ {[%clk 00:04:12]} {[%emt 00:01:01]} Kg8 {[%clk
00:01:41]} 33. Nf6+ {[%clk 00:04:30]} {[%emt 00:00:11]} Kf8 {[%clk 00:02:04]}
{[%emt 00:00:08]} 34. Qxf4 {[%clk 00:03:28]} {[%emt 00:01:32]} Nxf4 {[%clk
00:02:33]} 35. Nd7+ {[%clk 00:03:48]} {[%emt 00:00:10]} Ke7 {[%clk 00:02:26]}
{[%emt 00:00:37]} 36. Nxb6 {[%clk 00:03:48]} {[%emt 00:00:30]} Rc6 {[%clk
00:02:51]} {[%emt 00:00:06]} 37. a5 {[%clk 00:03:01]} {[%emt 00:01:16]} Nxh3+
{[%clk 00:03:17]} {[%emt 00:00:03]} 38. Kg2 {[%clk 00:03:20]} {[%emt 00:00:11]}
Nxg5 {[%clk 00:03:23]} {[%emt 00:00:25]} 39. b4 {[%clk 00:03:43]} {[%emt
00:00:06]} Ne4 {[%clk 00:02:22]} {[%emt 00:01:31]} 40. b5 {[%clk 00:03:40]}
{[%emt 00:00:33]} axb5 {[%clk 00:02:14]} {[%emt 00:00:38]} 41. cxb5 {[%clk
00:03:21]} {[%emt 00:00:49]} Rc2+ {[%clk 00:28:46]} {[%emt 00:03:57]} 42. Kf3
{[%clk 00:33:00]} {[%emt 00:00:51]} Nd6 {[%clk 00:28:36]} {[%emt 00:00:41]} 43.
a6 {[%clk 00:28:58]} {[%emt 00:04:32]} Nxb5 {[%clk 00:15:28]} {[%emt 00:13:38]}
44. a7 {[%clk 00:29:21]} {[%emt 00:00:07]} Nxa7 {[%clk 00:15:10]} {[%emt
00:00:48]} 45. Rd7+ {[%clk 00:29:46]} {[%emt 00:00:04]} Kf6 {[%clk 00:11:44]}
{[%emt 00:03:56]} 46. Rxa7 {[%clk 00:30:10]} {[%emt 00:00:06]} Rc1 {[%clk
00:05:33]} {[%emt 00:06:42]} 47. Nd7+ {[%clk 00:29:33]} {[%emt 00:01:06]} Kg7
{[%clk 00:05:53]} {[%emt 00:00:11]} 48. Ne5 {[%clk 00:27:09]} {[%emt 00:02:54]}
Rf1+ {[%clk 00:06:15]} {[%emt 00:00:07]} 49. Ke4 {[%clk 00:27:34]} {[%emt
00:00:05]} Rf5 {[%clk 00:06:19]} {[%emt 00:00:26]} 50. Rb7 {[%clk 00:27:59]}
{[%emt 00:00:07]} g5 {[%clk 00:06:32]} {[%emt 00:00:16]} 51. Ra7 {[%clk
00:28:15]} {[%emt 00:00:13]} Rf1 {[%clk 00:05:55]} {[%emt 00:01:06]} 52. Nf3
{[%clk 00:25:12]} {[%emt 00:03:35]} g4 {[%clk 00:04:22]} {[%emt 00:02:03]} 53.
Nh2 {[%clk 00:25:28]} {[%emt 00:00:13]} g3 {[%clk 00:04:15]} {[%emt 00:00:37]}
54. Nxf1 {[%clk 00:22:53]} {[%emt 00:03:06]} g2 {[%clk 00:04:36]} {[%emt
00:00:09]} 55. Ne3 {[%clk 00:23:20]} {[%emt 00:00:02]} g1=Q {[%clk 00:04:56]}
{[%emt 00:00:09]} 56. Ra2 {[%clk 00:23:46]} {[%emt 00:00:05]} Qb1+ {[%clk
00:05:01]} {[%emt 00:00:25]} 57. Rc2 {[%clk 00:24:11]} {[%emt 00:00:06]} f5+
{[%clk 00:04:11]} {[%emt 00:01:19]} 58. Kf3 {[%clk 00:24:37]} {[%emt 00:00:04]}
Kf6 {[%clk 00:04:20]} {[%emt 00:00:21]} 59. Rh2 {[%clk 00:24:05]} {[%emt
00:01:03]} Qb7+ {[%clk 00:04:09]} {[%emt 00:00:40]} 60. Kg3 {[%clk 00:24:04]}
{[%emt 00:00:31]} Kg5 {[%clk 00:04:23]} {[%emt 00:00:17]} 61. Kf2 {[%clk
00:23:28]} {[%emt 00:01:06]} Qb2+ {[%clk 00:04:40]} {[%emt 00:00:12]} 62. Kg1
{[%clk 00:23:53]} {[%emt 00:00:06]} Qc1+ {[%clk 00:05:03]} {[%emt 00:00:06]} 63.
Nf1 {[%clk 00:24:19]} {[%emt 00:00:05]} e5 {[%clk 00:05:24]} {[%emt 00:00:09]}
64. Rg2+ {[%clk 00:24:12]} {[%emt 00:00:37]} Kf6 {[%clk 00:05:47]} {[%emt
00:00:07]} 65. Rg8 {[%clk 00:24:17]} {[%emt 00:00:25]} f4 {[%clk 00:06:02]}
{[%emt 00:00:14]} 66. Kf2 {[%clk 00:23:45]} {[%emt 00:01:02]} Qc2+ {[%clk
00:06:04]} {[%emt 00:00:29]} 67. Kf3 {[%clk 00:23:52]} {[%emt 00:00:23]} Qb3+
{[%clk 00:06:24]} {[%emt 00:00:10]} 0-1